fUSD/lending_fUSD_20250520
["ID","MTS","AMOUNT","RATE_DAILY","PERIOD"]
[361774164,1747774250889,-762.0,0.00032876,5]
[361774166,1747774250899,-469.28,0.00032876,5]
[361774168,1747774250909,-1885.89,0.00032876,5]
[361774170,1747774250919,-420.0,0.00032876,5]
[361774173,1747774250929,-512.38,0.00032876,5]
[361774175,1747774250939,-2957.32,0.00032876,5]
[361774177,1747774250948,-420.0,0.00032876,5]
[361774179,1747774250958,-245.96930265,0.00032876,5]
[361774181,1747774250967,-1868.25,0.00032876,5]
[361774183,1747774250977,-824.51,0.00032876,5]
[361774185,1747774250987,-197.504931,0.00032876,7]
[361774187,1747774250997,-197.504931,0.00032876,7]
[361774189,1747774251006,-197.504931,0.00032876,7]
[361774191,1747774251015,-197.504931,0.00032876,7]
[361774193,1747774251026,-692.87,0.00032876,5]
[361774195,1747774251036,-1292.88,0.00032876,5]
[361774197,1747774251045,-3110.87,0.00032876,5]
[361774199,1747774251055,-420.0,0.00032876,5]
[361774202,1747774251064,-30139.94,0.00032876,5]
[361774204,1747774251074,-1830.72,0.00032876,5]
[361774206,1747774251083,-879.52,0.00032876,5]
[361774208,1747774251093,-420.0,0.00032876,5]
[361774210,1747774251104,-151.0,0.00032876,7]
[361774212,1747774251114,-1114.33,0.00032876,5]
[361774214,1747774251123,-2027.36,0.00032876,5]
[361774216,1747774251133,-151.0,0.00032876,7]
[361774218,1747774251142,-151.0,0.00032876,7]
[361774220,1747774251152,-197.504931,0.00032876,7]
[361774222,1747774251161,-151.0,0.00032876,7]
[361774224,1747774251171,-197.504931,0.00032876,7]
[361774226,1747774251181,-151.0,0.00032876,7]
[361774228,1747774251190,-197.504931,0.00032876,7]
[361774230,1747774251200,-420.0,0.00032876,5]
[361774232,1747774251209,-197.504931,0.00032876,7]
[361774235,1747774251219,-420.0,0.00032876,5]
[361774237,1747774251229,-420.0,0.00032876,5]
[361774239,1747774251239,-6848.53,0.00032876,5]
[361774241,1747774251249,-151.0,0.00032876,7]
[361774243,1747774251258,-803.86,0.00032876,5]
[361774245,1747774251267,-420.0,0.00032876,5]
[361774247,1747774251277,-151.0,0.00032876,7]
[361774249,1747774251287,-151.0,0.00032876,7]
[361774251,1747774251297,-437.25,0.00032876,5]
[361774253,1747774251307,-166.600944,0.00032876,7]
[361774255,1747774251316,-151.0,0.00032876,7]
[361774257,1747774251326,-420.0,0.00032876,5]
[361774259,1747774251335,-151.0,0.00032876,7]
[361774261,1747774251344,-420.0,0.00032876,5]
[361774263,1747774251355,-2407.74,0.00032876,5]
[361774265,1747774251365,-420.0,0.00032876,5]
[361774268,1747774251375,-1154.62,0.00032876,5]
[361774270,1747774251384,-896.4,0.00032876,5]
[361774272,1747774251394,-3524.53,0.00032876,5]
[361774274,1747774251403,-794.45,0.00032876,5]
[361774276,1747774251413,-420.0,0.00032876,2]
[361774278,1747774251423,-12311.35,0.00032876,5]
[361774280,1747774251433,-420.0,0.00032876,5]
[361774282,1747774251443,-1649.39,0.00032876,5]
[361774284,1747774251454,-420.0,0.00032876,5]
[361774286,1747774251463,-400.0,0.00032876,5]
[361774288,1747774251473,-420.0,0.00032876,5]
[361774290,1747774251483,-493.94,0.00032876,5]
[361774292,1747774251493,-3274.9,0.00032876,5]
[361774294,1747774251503,-420.0,0.00032876,5]
[361774296,1747774251512,-1007.49,0.00032876,5]
[361774299,1747774251522,-3680.45,0.00032876,5]
[361774301,1747774251532,-1204.7,0.00032876,5]
[361774303,1747774251541,-22905.89,0.00032876,5]
[361774305,1747774251551,-513.45,0.00032876,5]
[361774307,1747774251560,-2548.43,0.00032876,5]
[361774309,1747774251570,-1829.39,0.00032876,5]
[361774311,1747774251579,-27768.21,0.00032876,5]
[361774313,1747774251589,-420.0,0.00032876,5]
[361774315,1747774251600,-5493.96,0.00032876,5]
[361774317,1747774251610,-420.0,0.00032876,5]
[361774319,1747774251619,-434.25,0.00032876,5]
[361774321,1747774251629,-420.0,0.00032876,5]
[361774323,1747774251639,-420.0,0.00032876,5]
[361774325,1747774251648,-5805.85,0.00032876,5]
[361774327,1747774251658,-420.0,0.00032876,5]
[361774329,1747774251667,-1031.8,0.00032876,5]
[361774331,1747774251677,-588.29,0.00032876,5]
[361774333,1747774251687,-420.0,0.00032876,5]
[361774335,1747774251697,-420.0,0.00032876,5]
[361774337,1747774251706,-488.94,0.00032876,5]
[361774339,1747774251716,-2143.27,0.00032876,5]
[361774341,1747774251725,-2070.36,0.00032876,5]
[361774343,1747774251734,-1088.35,0.00032876,5]
[361774345,1747774251744,-420.0,0.00032876,5]
[361774347,1747774251754,-420.0,0.00032876,5]
[361774349,1747774251767,-420.0,0.00032876,5]
[361774351,1747774251776,-4915.94,0.00032876,5]
[361774353,1747774251786,-151.0,0.00032876,7]
[361774355,1747774251797,-1751.3,0.00032876,5]
[361774357,1747774251807,-151.0,0.00032876,7]
[361774359,1747774251817,-2768.48,0.00032876,5]
[361774361,1747774251826,-151.0,0.00032876,7]
[361774363,1747774251836,-151.0,0.00032876,7]
[361774365,1747774251846,-1358.48,0.00032876,5]
[361774367,1747774251856,-420.0,0.00032876,5]
[361774369,1747774251865,-420.0,0.00032876,5]
[361774371,1747774251875,-626.21,0.00032876,5]
[361774373,1747774251884,-420.0,0.00032876,5]
[361774375,1747774251894,-7757.89,0.00032876,5]
[361774377,1747774251905,-450.68,0.00032876,5]
[361774379,1747774251915,-1321.43,0.00032876,5]
[361774381,1747774251924,-420.0,0.00032876,5]
[361774383,1747774251934,-4044.77,0.00032876,5]
[361774385,1747774251944,-2389.08,0.00032876,5]
[361774387,1747774251954,-986.17,0.00032876,5]
[361774389,1747774251964,-420.0,0.00032876,5]
[361774391,1747774251974,-420.0,0.00032876,5]
[361774393,1747774251983,-2505.02,0.00032876,5]
[361774395,1747774251993,-552.64,0.00032876,5]
[361774397,1747774252004,-1268.45,0.00032876,5]
[361774399,1747774252014,-2134.89,0.00032876,5]
[361774401,1747774252023,-977.19,0.00032876,5]
[361774443,1747774252407,-420.0,0.00032876,5]
[361774447,1747774252441,-420.0,0.00032876,5]
[361774449,1747774252452,-420.0,0.00032876,5]
[361774451,1747774252462,-747.72,0.00032876,5]
[361774453,1747774252471,-723.83,0.00032876,5]
[361774455,1747774252481,-517.56,0.00032876,5]
[361774457,1747774252491,-583.56232606,0.00032876,5]
[361774459,1747774252501,-3376.02,0.00032876,5]
[361774461,1747774252511,-420.0,0.00032876,5]
[361774463,1747774252521,-420.0,0.00032876,5]
[361774465,1747774252532,-420.0,0.00032876,5]
[361774467,1747774252541,-1850.79,0.00032876,5]
[361774469,1747774252554,-430.63,0.00032876,5]
[361774471,1747774252563,-420.0,0.00032876,5]
[361774473,1747774252573,-1173.48,0.00032876,5]
[361774475,1747774252583,-420.0,0.00032876,5]
[361774477,1747774252593,-477.39,0.00032876,5]
[361774479,1747774252605,-465.62,0.00032876,5]
[361774481,1747774252614,-3135.62,0.00032876,5]
[361774483,1747774252624,-420.0,0.00032876,5]
[361774485,1747774252634,-420.0,0.00032876,5]
[361774487,1747774252644,-420.0,0.00032876,5]
[361774489,1747774252653,-3545.32,0.00032876,5]
[361774491,1747774252664,-483.78,0.00032876,5]
[361774493,1747774252675,-2247.82,0.00032876,5]
[361774495,1747774252684,-420.0,0.00032876,5]
[361774497,1747774252694,-4105.13,0.00032876,5]
[361774499,1747774252703,-151.0,0.00032876,7]
[361774501,1747774252713,-420.0,0.00032876,5]
[361774503,1747774252723,-151.0,0.00032876,7]
[361774505,1747774252733,-1261.21,0.00032876,5]
[361774507,1747774252742,-2402.94,0.00032876,5]
[361774509,1747774252752,-420.0,0.00032876,5]
[361774511,1747774252764,-151.0,0.00032876,7]
[361774513,1747774252774,-151.0,0.00032876,7]
[361774515,1747774252783,-151.0,0.00032876,7]
[361774517,1747774252793,-151.0,0.00032876,7]
[361774519,1747774252804,-151.0,0.00032876,7]
[361774521,1747774252814,-151.0,0.00032876,7]
[361774523,1747774252823,-151.0,0.00032876,7]
[361774525,1747774252834,-151.0,0.00032876,7]
[361774527,1747774252845,-151.0,0.00032876,7]
[361774529,1747774252857,-151.0,0.00032876,7]
[361774531,1747774252867,-420.0,0.00032876,5]
[361774533,1747774252876,-420.0,0.00032876,5]
[361774535,1747774252886,-151.0,0.00032876,7]
[361774537,1747774252896,-420.0,0.00032876,5]
[361774539,1747774252906,-151.0,0.00032876,7]
[361774541,1747774252917,-151.0,0.00032876,7]
[361774543,1747774252927,-151.0,0.00032876,7]
[361774545,1747774252938,-151.0,0.00032876,7]
[361774547,1747774252948,-151.0,0.00032876,7]
[361774549,1747774252959,-151.0,0.00032876,7]
[361774551,1747774252970,-151.0,0.00032876,7]
[361774553,1747774252980,-420.0,0.00032876,5]
[361774555,1747774252989,-420.0,0.00032876,5]
[361774557,1747774253000,-2076.07,0.00032876,5]
[361774559,1747774253010,-464.84,0.00032876,5]
[361774561,1747774253020,-2325.85,0.00032876,5]
[361774563,1747774253030,-569.08,0.00032876,5]
[361774565,1747774253039,-420.0,0.00032876,5]
[361774567,1747774253049,-340.0,0.00032876,5]
[361774569,1747774253060,-1204.72,0.00032876,5]
[361774571,1747774253070,-1324.35,0.00032876,5]
[361774573,1747774253079,-420.0,0.00032876,5]
[361774575,1747774253089,-5011.04,0.00032876,5]
[361774577,1747774253100,-5011.04,0.00032876,5]
[361774580,1747774253110,-669.0,0.00032876,5]
[361774582,1747774253120,-420.0,0.00032876,5]
[361774583,1747774253130,-5011.04,0.00032876,5]
[361774585,1747774253140,-420.0,0.00032876,5]
[361774587,1747774253150,-5011.04,0.00032876,5]
[361774589,1747774253160,-5011.04,0.00032876,5]
[361774592,1747774253170,-1304.6,0.00032876,5]
[361774593,1747774253179,-5011.04,0.00032876,5]
[361774595,1747774253189,-1743.4,0.00032876,5]
[361774597,1747774253199,-2942.14,0.00032876,5]
[361774600,1747774253209,-420.0,0.00032876,5]
[361774601,1747774253219,-608.73,0.00032876,5]
[361774604,1747774253229,-2442.22,0.00032876,5]
[361774606,1747774253239,-1388.14,0.00032876,5]
[361774608,1747774253249,-420.0,0.00032876,5]
[361774610,1747774253259,-420.0,0.00032876,5]
[361774612,1747774253269,-420.0,0.00032876,5]
[361774614,1747774253278,-5011.04,0.00032876,5]
[361774616,1747774253288,-5011.04,0.00032876,5]
[361774618,1747774253297,-5011.04,0.00032876,5]
[361774620,1747774253306,-1485.88,0.00032876,5]
[361774622,1747774253316,-1672.34,0.00032876,5]
[361774624,1747774253326,-4662.28,0.00032876,5]
[361774626,1747774253335,-420.0,0.00032876,5]
[361774628,1747774253346,-151.0,0.00032876,7]
[361774630,1747774253359,-151.0,0.00032876,7]
[361774632,1747774253368,-151.0,0.00032876,7]
[361774634,1747774253378,-3499.85,0.00032876,5]
[361774636,1747774253387,-151.0,0.00032876,7]
[361774637,1747774253397,-151.0,0.00032876,7]
[361774639,1747774253406,-583.46,0.00032876,5]
[361774641,1747774253416,-1510.46,0.00032876,5]
[361774644,1747774253426,-420.0,0.00032876,5]
[361774646,1747774253436,-16444.78,0.00032876,5]
[361774647,1747774253446,-420.0,0.00032876,5]
[361774649,1747774253456,-151.0,0.00032876,7]
[361774651,1747774253465,-151.0,0.00032876,7]
[361774653,1747774253475,-153.312582,0.00032876,7]
[361774656,1747774253485,-151.0,0.00032876,7]
[361774658,1747774253495,-151.0,0.00032876,7]
[361774659,1747774253504,-3060.58,0.00032876,5]
[361774662,1747774253515,-2255.6,0.00032876,5]
[361774664,1747774253524,-202.0662,0.00032876,7]
[361774666,1747774253534,-2255.6,0.00032876,5]
[361774667,1747774253544,-2255.6,0.00032876,5]
[361774669,1747774253554,-420.0,0.00032876,5]
[361774671,1747774253565,-2330.56,0.00032876,5]
[361774673,1747774253575,-420.0,0.00032876,5]
[361774675,1747774253584,-905.22,0.00032876,5]
[361774677,1747774253594,-420.0,0.00032876,5]
[361774679,1747774253605,-420.0,0.00032876,5]
[361774681,1747774253615,-1592.59,0.00032876,5]
[361774683,1747774253624,-420.0,0.00032876,5]
[361774685,1747774253634,-4723.96,0.00032876,5]
[361774687,1747774253643,-420.0,0.00032876,5]
[361774689,1747774253653,-420.0,0.00032876,5]
[361774691,1747774253662,-420.0,0.00032876,5]
[361774693,1747774253672,-1443.01,0.00032876,5]
[361774695,1747774253682,-564.02,0.00032876,5]
[361774697,1747774253692,-420.0,0.00032876,5]
[361774699,1747774253702,-1612.82,0.00032876,5]
[361774701,1747774253713,-723.36,0.00032876,5]
[361774703,1747774253723,-1604.77,0.00032876,5]
[361774705,1747774253734,-529.32,0.00032876,5]
[361774708,1747774253744,-436.56,0.00032876,5]
[361774710,1747774253757,-3394.56,0.00032876,5]
[361774712,1747774253772,-420.0,0.00032876,5]
[361774714,1747774253782,-4126.4,0.00032876,5]
[361774716,1747774253792,-420.0,0.00032876,5]
[361774717,1747774253802,-151.0,0.00032876,7]
[361774719,1747774253812,-151.0,0.00032876,7]
[361774721,1747774253821,-159.774483,0.00032876,7]
[361774723,1747774253831,-537.64,0.00032876,5]
[361774725,1747774253842,-420.0,0.00032876,5]
[361774727,1747774253852,-13281.63,0.00032876,5]
[361774729,1747774253861,-3435.18,0.00032876,5]
[361774731,1747774253870,-1547.84,0.00032876,5]
[361774732,1747774253880,-734.58,0.00032876,5]
[361774733,1747774253889,-420.0,0.00032876,5]
[361774734,1747774253899,-420.0,0.00032876,5]
[361774735,1747774253908,-1126.05,0.00032876,5]
[361774736,1747774253918,-420.0,0.00032876,5]
[361774737,1747774253927,-1133.71,0.00032876,5]
[361774738,1747774253938,-2000.4,0.00032876,5]
[361774739,1747774253947,-420.0,0.00032876,5]
[361774740,1747774253957,-1046.73,0.00032876,5]
[361774741,1747774253966,-420.0,0.00032876,5]
[361774742,1747774253975,-11162.44,0.00032876,5]
[361774743,1747774253984,-2664.0,0.00032876,5]
[361774744,1747774253994,-420.0,0.00032876,5]
[361774745,1747774254003,-420.0,0.00032876,5]
[361774746,1747774254012,-420.0,0.00032876,5]
[361774747,1747774254021,-1437.87,0.00032876,5]
[361774748,1747774254031,-1372.51,0.00032876,5]
[361774750,1747774254040,-420.0,0.00032876,5]
[361774751,1747774254049,-420.0,0.00032876,5]
[361774752,1747774254059,-2020.24,0.00032876,5]
[361774753,1747774254068,-1001.38,0.00032876,5]
[361774754,1747774254078,-420.0,0.00032876,5]
[361774756,1747774254090,-7336.38,0.00032876,5]
[361774758,1747774254099,-420.0,0.00032876,5]
[361774760,1747774254110,-420.0,0.00032876,5]
[361774762,1747774254120,-420.0,0.00032876,5]
[361774765,1747774254130,-151.0,0.00032876,7]
[361774767,1747774254139,-151.0,0.00032876,7]
[361774769,1747774254149,-151.0,0.00032876,7]
[361774771,1747774254159,-420.0,0.00032876,5]
[361774773,1747774254168,-420.0,0.00032876,5]
[361774775,1747774254178,-594.2,0.00032876,5]
[361774777,1747774254188,-420.0,0.00032876,5]
[361774779,1747774254198,-420.0,0.00032876,5]
[361774781,1747774254208,-1751.6,0.00032876,5]
[361774783,1747774254217,-449.38,0.00032876,5]
[361774785,1747774254227,-420.0,0.00032876,5]
[361774787,1747774254236,-851.75,0.00032876,5]
[361774789,1747774254247,-983.61,0.00032876,5]
[361774791,1747774254256,-1275.42,0.00032876,5]
[361774793,1747774254265,-420.0,0.00032876,5]
[361774795,1747774254275,-2787.14,0.00032876,5]
[361774797,1747774254285,-1039.78,0.00032876,5]
[361774799,1747774254294,-1819.02,0.00032876,5]
[361774800,1747774254304,-5887.98,0.00032876,5]
[361774802,1747774254314,-151.0,0.00032876,7]
[361774805,1747774254323,-2515.96,0.00032876,5]
[361774807,1747774254333,-358.0,0.00032876,5]
[361774808,1747774254342,-642.39,0.00032876,5]
[361774810,1747774254352,-9255.32,0.00032876,5]
[361774812,1747774254362,-1693.35,0.00032876,5]
[361774815,1747774254371,-420.0,0.00032876,5]
[361774817,1747774254381,-6773.7,0.00032876,5]
[361774819,1747774254391,-420.0,0.00032876,5]
[361774821,1747774254400,-420.0,0.00032876,5]
[361774823,1747774254411,-1841.75,0.00032876,5]
[361774825,1747774254420,-420.0,0.00032876,5]
[361774827,1747774254430,-420.0,0.00032876,5]
[361774829,1747774254439,-2285.32,0.00032876,5]
[361774831,1747774254449,-550.41,0.00032876,5]
[361774833,1747774254458,-714.24,0.00032876,5]
[361774835,1747774254467,-1463.62,0.00032876,5]
[361774837,1747774254478,-420.0,0.00032876,5]
[361774839,1747774254487,-4761.5,0.00032876,5]
[361774841,1747774254497,-555.68,0.00032876,5]
[361774843,1747774254506,-420.0,0.00032876,5]
[361774845,1747774254515,-970.89,0.00032876,5]
[361774847,1747774254524,-537.31,0.00032876,5]
[361774849,1747774254534,-420.0,0.00032876,5]
[361774851,1747774254544,-420.0,0.00032876,5]
[361774853,1747774254553,-420.0,0.00032876,5]
[361774855,1747774254562,-1982.5,0.00032876,5]
[361774857,1747774254571,-884.61,0.00032876,5]
[361774859,1747774254581,-1389.98,0.00032876,5]
[361774861,1747774254591,-1157.58,0.00032876,5]
[361774863,1747774254601,-1463.49,0.00032876,5]
[361774865,1747774254610,-420.0,0.00032876,5]
[361774867,1747774254620,-400.76529184,0.00032876,5]
[361774869,1747774254629,-997.99,0.00032876,5]
[361774871,1747774254639,-420.0,0.00032876,5]
[361774873,1747774254648,-3382.92,0.00032876,5]
[361774875,1747774254657,-2848.95,0.00032876,5]
[361774877,1747774254667,-420.0,0.00032876,5]
[361774879,1747774254676,-151.0,0.00032876,7]
[361774881,1747774254685,-420.0,0.00032876,5]
[361774883,1747774254695,-151.0,0.00032876,7]
[361774885,1747774254704,-151.0,0.00032876,7]
[361774887,1747774254714,-151.0,0.00032876,7]
[361774889,1747774254724,-1073.53,0.00032876,5]
[361774891,1747774254733,-151.0,0.00032876,7]
[361774893,1747774254743,-426.24,0.00032876,5]
[361774895,1747774254753,-654.55,0.00032876,5]
[361774897,1747774254764,-420.0,0.00032876,5]
[361774899,1747774254774,-1489.08,0.00032876,5]
[361774901,1747774254783,-17344.31,0.00032876,5]
[361774902,1747774254793,-420.0,0.00032876,5]
[361774904,1747774254804,-420.0,0.00032876,5]
[361774922,1747774254967,-724.77,0.00032876,5]
[361774924,1747774254978,-3161.32,0.00032876,5]
[361774926,1747774254987,-1151.11,0.00032876,5]
[361774928,1747774254996,-5717.21,0.00032876,5]
[361774930,1747774255005,-2278.28,0.00032876,5]
[361774932,1747774255015,-1344.56,0.00032876,5]
[361774934,1747774255024,-541.5,0.00032876,5]
[361774936,1747774255034,-3217.75,0.00032876,5]
[361774938,1747774255044,-2534.22,0.00032876,5]
[361774940,1747774255054,-420.0,0.00032876,5]
[361774942,1747774255064,-1947.33,0.00032876,5]
[361774944,1747774255073,-951.84,0.00032876,5]
[361774946,1747774255082,-843.08,0.00032876,5]
[361774948,1747774255092,-420.0,0.00032876,5]
[361774950,1747774255101,-3197.56,0.00032876,5]
[361774952,1747774255110,-617.91,0.00032876,5]
[361774954,1747774255119,-588.47,0.00032876,5]
[361774956,1747774255128,-151.0,0.00032876,7]
[361774958,1747774255137,-3726.07,0.00032876,5]
[361774960,1747774255147,-1694.09,0.00032876,5]
[361774962,1747774255157,-151.0,0.00032876,7]
[361774964,1747774255166,-151.0,0.00032876,7]
[361774966,1747774255175,-151.0,0.00032876,7]
[361774968,1747774255184,-420.0,0.00032876,5]
[361774970,1747774255194,-151.0,0.00032876,7]
[361774972,1747774255203,-940.46,0.00032876,5]
[361774974,1747774255213,-420.0,0.00032876,5]
[361774976,1747774255223,-480.03,0.00032876,5]
[361774978,1747774255232,-420.0,0.00032876,5]
[361774980,1747774255242,-421.2,0.00032876,5]
[361774982,1747774255251,-471.26,0.00032876,5]
[361774984,1747774255260,-3064.83,0.00032876,5]
[361774986,1747774255269,-746.83,0.00032876,5]
[361774988,1747774255278,-977.89,0.00032876,5]
[361774990,1747774255289,-775.74,0.00032876,5]
[361774991,1747774255299,-420.0,0.00032876,5]
[361774993,1747774255309,-2312.51,0.00032876,5]
[361774995,1747774255320,-2454.46,0.00032876,5]
[361774997,1747774255329,-3495.87,0.00032876,5]
[361774999,1747774255339,-420.0,0.00032876,5]
[361775001,1747774255348,-757.79,0.00032876,5]
[361775003,1747774255358,-420.0,0.00032876,5]
[361775005,1747774255367,-420.0,0.00032876,5]
[361775007,1747774255376,-420.0,0.00032876,5]
[361775009,1747774255386,-400.0,0.00032876,5]
[361775011,1747774255396,-420.0,0.00032876,5]
[361775013,1747774255408,-926.41,0.00032876,5]
[361775016,1747774255420,-14206.57,0.00032876,5]
[361775018,1747774255431,-1904.06,0.00032876,5]
[361775020,1747774255441,-420.0,0.00032876,5]
[361775022,1747774255451,-420.0,0.00032876,5]
[361775024,1747774255460,-4534.12,0.00032876,5]
[361775026,1747774255469,-4038.92,0.00032876,5]
[361775028,1747774255478,-420.0,0.00032876,5]
[361775030,1747774255486,-1737.53,0.00032876,5]
[361775032,1747774255495,-335.92410571,0.00032876,5]
[361775034,1747774255504,-950.0,0.00032876,5]
[361775036,1747774255513,-2030.72,0.00032876,5]
[361775038,1747774255521,-486.69,0.00032876,5]
[361775040,1747774255530,-580.41,0.00032876,5]
[361775042,1747774255539,-420.0,0.00032876,5]
[361775044,1747774255547,-3001.25,0.00032876,5]
[361775046,1747774255555,-420.0,0.00032876,5]
[361775048,1747774255565,-6535.77,0.00032876,5]
[361775050,1747774255574,-420.0,0.00032876,5]
[361775052,1747774255583,-154.065796,0.00032876,7]
[361775054,1747774255592,-1335.55,0.00032876,5]
[361775056,1747774255602,-457.55,0.00032876,5]
[361775058,1747774255611,-7021.48,0.00032876,5]
[361775060,1747774255620,-2446.12,0.00032876,5]
[361775062,1747774255629,-420.0,0.00032876,5]
[361775064,1747774255638,-1066.37,0.00032876,5]
[361775066,1747774255647,-510.60969189,0.00032876,5]
[361775068,1747774255655,-479.9,0.00032876,5]
[361775070,1747774255665,-420.0,0.00032876,5]
[361775072,1747774255674,-12511.55,0.00032876,5]
[361775073,1747774255683,-724.7,0.00032876,5]
[361775075,1747774255694,-420.0,0.00032876,5]
[361775077,1747774255704,-420.0,0.00032876,5]
[361775079,1747774255713,-420.0,0.00032876,5]
[361775081,1747774255723,-1407.53,0.00032876,5]
[361775083,1747774255733,-2718.72,0.00032876,5]
[361775086,1747774255743,-6496.41,0.00032876,5]
[361775088,1747774255753,-205452.78,0.00032876,5]
[361775090,1747774255764,-3712.37,0.00032876,5]
[361775092,1747774255774,-434.8,0.00032876,5]
[361775094,1747774255784,-420.0,0.00032876,5]
[361775096,1747774255792,-3859.85,0.00032876,5]
[361775098,1747774255802,-500.0,0.00032876,5]
[361775099,1747774255811,-500.0,0.00032876,5]
[361775101,1747774255820,-420.0,0.00032876,5]
[361775103,1747774255828,-461.88,0.00032876,5]
[361775105,1747774255837,-500.0,0.00032876,5]
[361775107,1747774255846,-1108.53,0.00032876,5]
[361775109,1747774255856,-500.0,0.00032876,5]
[361775111,1747774255865,-500.0,0.00032876,5]
[361775113,1747774255874,-500.0,0.00032876,5]
[361775115,1747774255884,-420.0,0.00032876,5]
[361775117,1747774255893,-420.0,0.00032876,5]
[361775119,1747774255903,-6100.17,0.00032876,5]
[361775121,1747774255912,-853.38,0.00032876,5]
[361775123,1747774255921,-1349.59,0.00032876,5]
[361775125,1747774255930,-420.0,0.00032876,5]
[361775127,1747774255939,-8444.67,0.00032876,5]
[361775130,1747774255949,-4650.53,0.00032876,5]
[361775132,1747774255959,-1422.1,0.00032876,5]
[361775134,1747774255968,-420.0,0.00032876,5]
[361775136,1747774255977,-420.0,0.00032876,5]
[361775138,1747774255987,-1409.66,0.00032876,5]
[361775139,1747774255996,-1789.62,0.00032876,5]
[361775141,1747774256005,-1408.94,0.00032876,5]
[361775143,1747774256013,-1896.46,0.00032876,5]
[361775145,1747774256022,-420.0,0.00032876,5]
[361775147,1747774256034,-382.24335355,0.00032876,5]
[361775149,1747774256043,-420.0,0.00032876,5]
[361775151,1747774256053,-420.0,0.00032876,5]
[361775153,1747774256063,-12922.38,0.00032876,5]
[361775155,1747774256071,-420.0,0.00032876,5]
[361775157,1747774256081,-5717.63,0.00032876,5]
[361775159,1747774256090,-881.16,0.00032876,5]
[361775161,1747774256101,-420.0,0.00032876,5]
[361775163,1747774256110,-2404.39,0.00032876,5]
[361775165,1747774256121,-420.0,0.00032876,5]
[361775167,1747774256130,-420.0,0.00032876,5]
[361775169,1747774256139,-420.0,0.00032876,5]
[361775171,1747774256150,-420.0,0.00032876,5]
[361775173,1747774256159,-420.0,0.00032876,5]
[361775175,1747774256169,-420.0,0.00032876,5]
[361775177,1747774256178,-2434.18,0.00032876,5]
[361775179,1747774256187,-420.0,0.00032876,5]
[361775181,1747774256197,-420.0,0.00032876,5]
[361775183,1747774256207,-3971.14,0.00032876,5]
[361775185,1747774256217,-1639.15,0.00032876,5]
[361775187,1747774256226,-557.84,0.00032876,5]
[361775189,1747774256235,-420.0,0.00032876,5]
[361775191,1747774256244,-420.0,0.00032876,5]
[361775193,1747774256254,-1925.14,0.00032876,5]
[361775195,1747774256263,-5820.1,0.00032876,5]
[361775197,1747774256273,-1820.37,0.00032876,5]
[361775199,1747774256282,-420.0,0.00032876,5]
[361775201,1747774256291,-2420.28,0.00032876,5]
[361775203,1747774256301,-420.0,0.00032876,5]